Cogmind - Beta 13 @@@ ROGUE MODE // 2024.04.28 @ 14:17:58 Player: Fazzonamite Result: Destroyed by D-63 Destroyer with Heavy Rocket Launcher Performance ------------- Evolutions (6) 3000 Regions Visited (12) 2400 Robots Destroyed (61) 305 Value Destroyed (2230) 2230 Prototype IDs (15) 300 Alien Tech Used (2) 400 Bonus (470) 470 TOTAL SCORE: 9105 Bonus ------- Follower Combat Kills 170 Met Zhirov 300 Cogmind --------- Core Integrity 0/1150 Matter 275/300 Energy 337/340 System Corruption 0% Temperature Cool (1) Movement Walking (120) Location -3/Proximity Caves Parts ------- > --- POWER (2) -------- Heavy Antimatter Reactor > --- PROPULSION (4) --- Advanced Myomer Leg > --- UTILITY (10) ----- Advanced Visual Processing Unit Advanced ECM Suite Experimental Utility Shielding Advanced Hacking Suite Improved System Guard > --- WEAPON (3) ------- (None) > --- INVENTORY (5) ---- Improved Matter Compressor (143) Peak State ------------ > --- POWER ------------ Light Antimatter Reactor Heavy Antimatter Reactor > --- PROPULSION ------- Advanced Myomer Leg Advanced Myomer Leg Advanced Myomer Leg > --- UTILITY ---------- Advanced Visual Processing Unit Advanced ECM Suite Experimental Utility Shielding Advanced Hacking Suite Improved System Guard > --- WEAPON ----------- Heavy Battle Rifle Improved Remote Datajack > --- INVENTORY -------- Improved Matter Compressor Transdimensional Reconstructor Integrated Reactor [Rating: 78] Favorites ----------- Power Reinforced Deuterium Engine Engine Reinforced Deuterium Engine Power Core Neutrino Core Reactor Light Antimatter Reactor Propulsion Titanium Leg Treads Light Treads Leg Titanium Leg Wheel Wheel Flight Unit VTOL Module Utility Large Storage Unit Device Improved Heat Sink Storage Large Storage Unit Processor Visual Processing Unit Hackware Advanced Hacking Suite Protection Hardened Light Armor Plating Weapon Grenade Launcher Energy Gun Beam Rifle Energy Cannon Beam Cannon Ballistic Gun Light Assault Rifle Ballistic Cannon Light Cannon Launcher Grenade Launcher Special Weapon Improved Remote Datajack Build | -11 -10 -10 -9 -8 -7 -6 -5 -4 -4 -4 -4 -3 ------- Run | Yrd Mat Min Mat Mat Fac Fac Fac Fac Upp Upp Zhi Pro Slots Evolved 12 | . . . 2 2 2 2 2 2 . . . . Power 1 | . . . . . . . . 1 . . . . Propulsion 2 | . . . . 2 . . . . . . . . Utility 8 | . . . 2 . 2 2 2 . . . . . Weapon 1 | . . . . . . . . 1 . . . . Parts Attached 111 | 4 13 2 12 21 7 1 9 4 26 1 11 . Power 15 | . 3 . 3 1 1 . . . 5 . 2 . Engine 11 | . 3 . 3 1 1 . . . 3 . . . Core 1 | . . . . . . . . . 1 . . . Reactor 3 | . . . . . . . . . 1 . 2 . Propulsion 33 | 1 3 1 2 7 4 . 2 2 8 . 3 . Treads 4 | . . . . 4 . . . . . . . . Leg 18 | . . . . . 4 . 2 2 7 . 3 . Wheel 10 | 1 3 1 2 3 . . . . . . . . Hover . | . . . . . . . . . . . . . Flight 1 | . . . . . . . . . 1 . . . Utility 32 | 1 5 . 4 5 2 1 3 1 6 . 4 . Device 10 | . 1 . 2 1 1 . . 1 3 . 1 . Storage 3 | 1 1 . . . . . . . . . 1 . Processor 5 | . 1 . 1 1 . . 1 . 1 . . . Hackware 1 | . . . . . . . . . . . 1 . Protection 13 | . 2 . 1 3 1 1 2 . 2 . 1 . Artifact . | . . . . . . . . . . . . . Weapon 31 | 2 2 1 3 8 . . 4 1 7 1 2 . Energy Gun 2 | . . . 1 1 . . . . . . . . Energy Cannon 3 | . . . . 2 . . . . . 1 . . Ballistic Gun 18 | 2 1 . 2 3 . . 3 1 5 . 1 . Ballistic Cannon 1 | . 1 . . . . . . . . . . . Launcher 5 | . . 1 . 2 . . 1 . 1 . . . Special Weapon 2 | . . . . . . . . . 1 . 1 . Impact Weapon . | . . . . . . . . . . . . . Slashing Weapon . | . . . . . . . . . . . . . Piercing Weapon . | . . . . . . . . . . . . . Special Melee Weapon . | . . . . . . . . . . . . . Unidentified Prototypes 6 | . . . . . . . . . . . 4 2 Parts Lost 48 | . 1 1 2 6 . . 1 4 18 10 . 5 Power 6 | . . . . . . . . . 3 2 . 1 Propulsion 16 | . 1 1 . 3 . . . 1 4 4 . 2 Utility 16 | . . . 2 2 . . 1 2 6 3 . . Weapon 10 | . . . . 1 . . . 1 5 1 . 2 Highest Loss Streak 14 | . 1 1 2 6 . . 1 3 14 8 . 5 To Critical Strikes . | . . . . . . . . . . . . . Average Slot Usage (%) 82 | . 97 99 96 92 95 93 82 73 62 56 33 60 Engine 7 | . 14 14 11 9 7 6 5 5 6 3 . . Treads 3 | . . . . 24 9 . . . . . . . Leg 11 | . . . . . 20 26 23 20 17 18 6 15 Wheel 7 | . 27 27 22 6 . . . . . . . . Device 5 | . 5 . 8 2 4 6 5 5 7 8 1 5 Storage 6 | . 14 14 11 9 7 6 5 5 1 . . . Processor 10 | . 1 . 11 13 15 13 11 10 11 10 10 10 Protection 9 | . 5 14 10 9 13 20 17 16 4 3 1 5 Ballistic Gun 8 | . 25 10 15 6 . . 2 9 9 4 5 4 Ballistic Cannon 1 | . 2 14 2 . . . . . . . . . Launcher 4 | . . 3 . 5 15 13 8 . . . . . Naked Turns . | . . . . . . . . . . . . . Heaviest Build 66 | 7 32 34 33 46 55 59 66 65 66 45 42 42 Greatest Support 90 | 10 26 20 32 80 80 68 68 68 90 90 90 90 Greatest Overweight (x) 15 | . 1 3 1 15 1 . . 1 1 3 1 . Average Overweight (x) . | . . 1 . . . . . . . . . . Largest Inventory Capacity 15 | 8 15 15 15 15 15 15 15 15 15 5 5 5 Average Capacity 12 | 7 14 15 15 15 15 15 15 15 8 5 5 5 Most Carried 15 | 5 15 15 15 15 15 15 15 15 15 5 5 2 Average Carried 11 | 3 10 14 13 13 14 14 14 14 6 3 4 1 Final Capacity 15 | 8 15 15 15 15 15 15 15 15 5 5 5 5 Final Carried 15 | 4 15 15 15 15 15 15 13 15 3 5 3 1 Class Distribution -------------------- 60% | Scavenger-Mutant 34% | Mutant 4% | Scavenger-Bomber Dominant Class ---------------- Mutant | -10/Materials Mutant | -10/Mines Mutant | -9/Materials Scavenger-Mutant | -8/Materials Scavenger-Mutant | -7/Factory Scavenger-Mutant | -6/Factory Scavenger-Mutant | -5/Factory Scavenger-Mutant | -4/Factory Scavenger-Mutant | -4/Upper Caves Scavenger-Mutant | -4/Upper Caves Mutant | -4/Zhirov Mutant | -3/Proximity Caves Resources | -11 -10 -10 -9 -8 -7 -6 -5 -4 -4 -4 -4 -3 ----------- Run | Yrd Mat Min Mat Mat Fac Fac Fac Fac Upp Upp Zhi Pro Matter Collected 3100 | 240 449 113 190 412 79 71 292 182 780 42 250 . Remotely . | . . . . . . . . . . . . . Salvage Created 2252 | . 362 114 380 561 27 97 198 11 423 79 . . Parts 129 | . 25 3 20 37 3 5 8 3 22 3 . . Haulers Intercepted 1 | . 1 . . . . . . . . . . . Recyclers Shooed 1 | . . . . . . . 1 . . . . . Parts Field Recycled . | . . . . . . . . . . . . . Retrieved Matter . | . . . . . . . . . . . . . Parts Self-Destructed 29 | . . . . . . . . . 23 6 . . Prevented . | . . . . . . . . . . . . . Kills | -11 -10 -10 -9 -8 -7 -6 -5 -4 -4 -4 -4 -3 ------- Run | Yrd Mat Min Mat Mat Fac Fac Fac Fac Upp Upp Zhi Pro Combat Hostiles Destroyed 50 | . 6 4 8 11 . 3 6 . 9 3 . . Guns 29 | . 6 . 8 5 . . 2 . 7 1 . . Cannons 6 | . . 1 . 3 . . . . . 2 . . AOE 15 | . . 3 . 3 . 3 4 . 2 . . . Classes Destroyed 15 | . 5 4 1 . . 1 3 . 1 . . . Worker 4 | . . 1 . . 2 . . 1 . . . . Builder 3 | . 2 . . . . 1 . . . . . . Tunneler 2 | . . 1 . 1 . . . . . . . . Hauler 1 | . 1 . . . . . . . . . . . Recycler 1 | . . 1 . . . . . . . . . . Operator 1 | . 1 . . . . . . . . . . . Watcher 3 | . 2 . . 1 . . . . . . . . Swarmer 8 | . . . . . . . 1 . 4 3 . . Grunt 23 | . 6 . 6 6 . 2 2 . 1 . . . Brawler 3 | . . . . . . . 1 . 2 . . . Duelist 1 | . . . . . . . . . 1 . . . Sentry 8 | . . . 2 5 . . . . 1 . . . Specialist 1 | . . . . . . 1 . . . . . . Hunter 2 | . . . . . . . 2 . . . . . Assembled 4 | . . 4 . . . . . . . . . . Best Kill Streak 6 | . 3 6 4 4 2 4 3 1 4 3 . . Combat Bots Only 4 | . 2 4 4 4 . 3 3 . 4 3 . . Max Kills in Single Turn 4 | . 1 4 1 2 2 3 1 1 2 1 . . Gunslinging 1 | . . . . . . . . . 1 . . . Exploded 2 | . . 2 . 1 . 2 1 . 1 . . . Melee . | . . . . . . . . . . . . . Uniques/NPCs Destroyed . | . . . . . . . . . . . . . Combat | -11 -10 -10 -9 -8 -7 -6 -5 -4 -4 -4 -4 -3 -------- Run | Yrd Mat Min Mat Mat Fac Fac Fac Fac Upp Upp Zhi Pro Hostile Shots Fired 636 | . 40 9 39 82 2 44 35 72 122 127 . 64 Missed 219 | . 12 1 6 21 . 19 17 23 33 58 . 29 Damage Taken 8430 | . 370 142 478 908 20 358 362 1389 2031 1084 . 1288 Core 1582 | . 127 11 89 162 . 25 35 80 343 320 . 390 Absorbed by Shields . | . . . . . . . . . . . . . Redirected to Shielding 19 | . . . . . . . . . . . . 19 Ignored by Resistances 93 | . . . . . . . . . 93 . . . Core Remaining (%) 83 | 100 . 44 77 70 100 97 96 . . . . . Volleys Fired 217 | . 66 10 24 37 1 3 16 17 26 8 9 . Largest 3 | . 2 2 2 2 2 2 2 2 3 2 1 . Hottest 120 | . 55 65 76 85 60 60 60 50 83 120 33 . Shots Fired 417 | . 132 15 48 74 2 6 30 34 51 16 9 . Gun 325 | . 126 2 48 44 . . 9 34 45 8 9 . Cannon 48 | . 6 10 . 24 . . . . . 8 . . Launcher 41 | . . 3 . 6 2 6 21 . 3 . . . Special 3 | . . . . . . . . . 3 . . . Kinetic 321 | . 132 12 38 34 . . 9 34 45 8 9 . Thermal 52 | . . . 10 34 . . . . . 8 . . Explosive 41 | . . 3 . 6 2 6 21 . 3 . . . Electromagnetic . | . . . . . . . . . . . . . Robot Hit Streak 17 | . 10 2 9 14 5 6 3 10 17 3 . . Robot Miss Streak 4 | . 4 3 1 2 . 1 2 3 3 4 . . Penetration Max . | . . . . . . . . . . . . . Secondary Targets 5 | . 1 . . . . . 1 . 3 . . . Max Gunslinging Chain 2 | . 1 . . . . . 1 . 2 . . . Shots Hit Robots 255 | . 89 8 36 48 1 1 7 20 40 5 . . Core Hits 184 | . 33 8 19 33 2 14 41 7 25 2 . . Critical Kills . | . . . . . . . . . . . . . Critical Parts Destroyed . | . . . . . . . . . . . . . Critical Strikes 1 | . . . 1 . . . . . . . . . Burn 1 | . . . 1 . . . . . . . . . Melee Attacks . | . . . . . . . . . . . . . Impact . | . . . . . . . . . . . . . Slashing . | . . . . . . . . . . . . . Piercing . | . . . . . . . . . . . . . Sneak Attacks . | . . . . . . . . . . . . . Combat Hostiles . | . . . . . . . . . . . . . Follow-up Attacks . | . . . . . . . . . . . . . Damage Inflicted 5904 | . 754 321 431 1134 108 624 882 355 1118 177 . . Guns 2708 | . 684 19 406 405 . . 89 355 710 40 . . Cannons 651 | . 70 80 . 364 . . . . . 137 . . Explosions 2507 | . . 222 25 365 82 624 781 . 408 . . . Melee . | . . . . . . . . . . . . . Ramming 38 | . . . . . 26 . 12 . . . . . Kinetic 2670 | . 754 99 289 334 . . 89 355 710 40 . . Thermal 689 | . . . 117 435 . . . . . 137 . . Explosive 2482 | . . 222 . 365 82 624 781 . 408 . . . Electromagnetic 25 | . . . 25 . . . . . . . . . Impact . | . . . . . . . . . . . . . Slashing . | . . . . . . . . . . . . . Piercing . | . . . . . . . . . . . . . Highest Corruption 2 | . . . . . . 2 . 2 2 . . . Average Corruption 1 | . . . . . . 1 . 2 2 . . . Corruption Purged . | . . . . . . . . . . . . . Corruption Blocked . | . . . . . . . . . . . . . Effects 4 | . . . . . . 3 . . 1 . . . Message Errors 3 | . . . . . . 2 . . 1 . . . Data Loss (minor) 1 | . . . . . . 1 . . . . . . Overload Shots . | . . . . . . . . . . . . . Overflow Damage 42 | . . 7 . . . . . . 11 24 . . Projectiles 24 | . . . . . . . . . . 24 . . Explosions 18 | . . 7 . . . . . . 11 . . . Melee . | . . . . . . . . . . . . . Knockbacks 1 | . . 1 . . . . . . . . . . Impact . | . . . . . . . . . . . . . Kinetic 1 | . . 1 . . . . . . . . . . Secondary . | . . . . . . . . . . . . . Self-Inflicted Damage 174 | . . 32 36 . . . . . 106 . . . Shots 6 | . . 2 1 . . . . . 3 . . . Rammed 5 | . . . . . 5 . . . . . . . Targets Rammed 6 | . . . . . 5 . 1 . . . . . Kicked 1 | . . . . . . . 1 . . . . . Crushed . | . . . . . . . . . . . . . Highest Temperature 514 | . 43 96 72 514 . 12 18 1 13 . . . Average Temperature 80 | . 12 45 26 135 . 7 10 1 5 . . . Received Heat Transfer 1378 | . 210 60 207 405 . 36 99 102 226 24 . 9 Effects 8 | . . . . 8 . . . . . . . . Shutdowns 2 | . . . . 2 . . . . . . . . Energy Bleed 1 | . . . . 1 . . . . . . . . Interference 2 | . . . . 2 . . . . . . . . Matter Decay 2 | . . . . 2 . . . . . . . . Short Circuit 1 | . . . . 1 . . . . . . . . Siege Activations . | . . . . . . . . . . . . . Robots Corrupted . | . . . . . . . . . . . . . Combat Hostiles . | . . . . . . . . . . . . . Parts Fried . | . . . . . . . . . . . . . Impact Corruptions . | . . . . . . . . . . . . . Robots Melted . | . . . . . . . . . . . . . Combat Hostiles . | . . . . . . . . . . . . . Parts Melted 4 | . . . 1 1 . . . . 1 1 . . Heat Transferred 1480 | . . . 370 962 . . . . . 148 . . Parts Sabotaged . | . . . . . . . . . . . . . Parts Stolen . | . . . . . . . . . . . . . Parts Stripped . | . . . . . . . . . . . . . Power Chain Reactions . | . . . . . . . . . . . . . Alert | -11 -10 -10 -9 -8 -7 -6 -5 -4 -4 -4 -4 -3 ------- Run | Yrd Mat Min Mat Mat Fac Fac Fac Fac Upp Upp Zhi Pro Peak Influence 254 | . 151 21 168 205 70 158 254 121 . . . . Initial 119 | . . 13 7 61 70 . 4 119 . . . . Average 67 | . 51 16 38 124 37 64 126 107 . . . . Maximum Alert Level 1 | . . . . 1 . . 1 . . . . . Low Security (%) 95 | 100 100 100 100 86 100 100 72 100 . . . . Level 1 4 | . . . . 13 . . 27 . . . . . Level 2 . | . . . . . . . . . . . . . Level 3 . | . . . . . . . . . . . . . Level 4 . | . . . . . . . . . . . . . Level 5 . | . . . . . . . . . . . . . High Security . | . . . . . . . . . . . . . Max Security . | . . . . . . . . . . . . . Squads Dispatched 24 | . 2 . . 5 1 4 8 4 . . . . Investigation 1 | . . . . . . . 1 . . . . . Extermination 3 | . . . . . 1 1 . 1 . . . . Reinforcement 13 | . 2 . . 2 . 2 4 3 . . . . Assault 1 | . . . . 1 . . . . . . . . Garrison 6 | . . . . 2 . 1 3 . . . . . Intercept . | . . . . . . . . . . . . . Searches Triggered . | . . . . . . . . . . . . . Construction Impeded 2 | . . . . 1 . . 1 . . . . . Haulers Reinforced . | . . . . . . . . . . . . . Active Scanning Responses . | . . . . . . . . . . . . . Cargo Convoy Interrupts . | . . . . . . . . . . . . . Stealth | -11 -10 -10 -9 -8 -7 -6 -5 -4 -4 -4 -4 -3 --------- Run | Yrd Mat Min Mat Mat Fac Fac Fac Fac Upp Upp Zhi Pro Distress Signals 8 | . 1 . 1 2 . . 2 . . . . 2 Communications Jammed . | . . . . . . . . . . . . . Distress Signals . | . . . . . . . . . . . . . Times Spotted 148 | . 15 5 15 19 8 12 23 16 13 14 . 8 Peak Tracking Total 7 | . 4 3 7 6 4 5 6 5 7 4 . 7 Tactical Retreats 11 | . 2 1 3 1 . . . . . 4 . . Traps | -11 -10 -10 -9 -8 -7 -6 -5 -4 -4 -4 -4 -3 ------- Run | Yrd Mat Min Mat Mat Fac Fac Fac Fac Upp Upp Zhi Pro Traps Triggered 2 | . . . . 1 . . 1 . . . . . Indirectly . | . . . . . . . . . . . . . Trap Hack Attempts . | . . . . . . . . . . . . . Triggered . | . . . . . . . . . . . . . Disarmed . | . . . . . . . . . . . . . Reprogrammed . | . . . . . . . . . . . . . Reused . | . . . . . . . . . . . . . Traps Extracted . | . . . . . . . . . . . . . Installed . | . . . . . . . . . . . . . Triggered 1 | . . . . . . . . . 1 . . . Machines | -11 -10 -10 -9 -8 -7 -6 -5 -4 -4 -4 -4 -3 ---------- Run | Yrd Mat Min Mat Mat Fac Fac Fac Fac Upp Upp Zhi Pro Machines Disabled 5 | . . . 1 1 1 2 . . . . . . Max in Single Turn 2 | . . . 1 1 1 2 . . . . . . Garrison Access 2 | . . . . 1 . . 1 . . . . . Machines Repaired . | . . . . . . . . . . . . . Machines Dismantled . | . . . . . . . . . . . . . Machines Sabotaged . | . . . . . . . . . . . . . Overloaded Fab Kills . | . . . . . . . . . . . . . Hacking | -11 -10 -10 -9 -8 -7 -6 -5 -4 -4 -4 -4 -3 --------- Run | Yrd Mat Min Mat Mat Fac Fac Fac Fac Upp Upp Zhi Pro Machines Accessed 20 | . 5 . 2 2 . . 2 . . . 9 . Terminals 9 | . 5 . 2 2 . . . . . . . . Fabricators 1 | . . . . . . . 1 . . . . . Repair Stations . | . . . . . . . . . . . . . Recycling Units . | . . . . . . . . . . . . . Scanalyzers . | . . . . . . . . . . . . . Garrison Access 1 | . . . . . . . 1 . . . . . Total Hacks 71 | . 9 . 7 5 . . 2 . . . 48 . Successful 55 | . 3 . 1 2 . . 1 . . . 48 . Failed 16 | . 6 . 6 3 . . 1 . . . . . Catastrophic 2 | . 1 . 1 . . . . . . . . . Database Lockouts . | . . . . . . . . . . . . . Manual 1 | . . . . . . . 1 . . . . . Terminals 21 | . 9 . 7 5 . . . . . . . . Fabricators 1 | . . . . . . . 1 . . . . . Repair Stations . | . . . . . . . . . . . . . Recycling Units . | . . . . . . . . . . . . . Scanalyzers . | . . . . . . . . . . . . . Garrison Access 1 | . . . . . . . 1 . . . . . Terminal Hacks 54 | . 3 . 1 2 . . . . . . 48 . Record 36 | . . . . . . . . . . . 36 . Part Schematic 4 | . . . . . . . . . . . 4 . Robot Analysis 4 | . . . . . . . . . . . 4 . Prototype ID Bank 4 | . . . . . . . . . . . 4 . Unreport Threat 2 | . . . . 2 . . . . . . . . Locate Traps 1 | . 1 . . . . . . . . . . . Recall Investigation 1 | . 1 . . . . . . . . . . . Zone Layout 2 | . 1 . 1 . . . . . . . . . Fabricator Hacks . | . . . . . . . . . . . . . Repair Station Hacks . | . . . . . . . . . . . . . Recycling Unit Hacks . | . . . . . . . . . . . . . Scanalyzer . | . . . . . . . . . . . . . Garrison Access Hacks 1 | . . . . . . . 1 . . . . . Seal Access 1 | . . . . . . . 1 . . . . . Unauthorized Hacks . | . . . . . . . . . . . . . Terminals . | . . . . . . . . . . . . . Fabricators . | . . . . . . . . . . . . . Repair Stations . | . . . . . . . . . . . . . Recycling Units . | . . . . . . . . . . . . . Scanalyzers . | . . . . . . . . . . . . . Garrison Access . | . . . . . . . . . . . . . Data Cores Recovered . | . . . . . . . . . . . . . Used . | . . . . . . . . . . . . . Hacking Detections 7 | . 4 . 2 . . . 1 . . . . . Full Trace Events . | . . . . . . . . . . . . . Feedback Events . | . . . . . . . . . . . . . Feedback Blocked . | . . . . . . . . . . . . . Robot Schematics Acquired . | . . . . . . . . . . . . . Robots Built . | . . . . . . . . . . . . . Authchips . | . . . . . . . . . . . . . Time . | . . . . . . . . . . . . . Total Robot Build Rating . | . . . . . . . . . . . . . Part Schematics Acquired 4 | . . . . . . . . . . . 4 . Parts Built . | . . . . . . . . . . . . . Authchips . | . . . . . . . . . . . . . Time . | . . . . . . . . . . . . . Total Part Build Rating . | . . . . . . . . . . . . . Parts Repaired . | . . . . . . . . . . . . . Time . | . . . . . . . . . . . . . Parts Recycled . | . . . . . . . . . . . . . Recycled Matter . | . . . . . . . . . . . . . Retrieved Matter . | . . . . . . . . . . . . . Retrieved Components . | . . . . . . . . . . . . . Parts Scanalyzed . | . . . . . . . . . . . . . Part Schematics Acquired . | . . . . . . . . . . . . . Parts Damaged . | . . . . . . . . . . . . . Bothacking | -11 -10 -10 -9 -8 -7 -6 -5 -4 -4 -4 -4 -3 ------------ Run | Yrd Mat Min Mat Mat Fac Fac Fac Fac Upp Upp Zhi Pro Used RIF Installer . | . . . . . . . . . . . . . Robots Hacked . | . . . . . . . . . . . . . Non-combat . | . . . . . . . . . . . . . Combat . | . . . . . . . . . . . . . Robot Hacks Applied . | . . . . . . . . . . . . . Relay Couplers Released 2 | . . . . 2 . . . . . . . . Machine Destruction 2 | . . . . 2 . . . . . . . . Fabnet Peak Effective % . | . . . . . . . . . . . . . Robots Rewired 2 | . . . . . . . . . 2 . . . Allies Hacked . | . . . . . . . . . . . . . Hacks Repelled . | . . . . . . . . . . . . . Allies | -11 -10 -10 -9 -8 -7 -6 -5 -4 -4 -4 -4 -3 -------- Run | Yrd Mat Min Mat Mat Fac Fac Fac Fac Upp Upp Zhi Pro Total Allies 5 | . . 3 . . . . . . 2 . . . Largest Group 3 | . . 3 . . . . . . 2 . . . Highest-Rated Group 79 | . . 40 . . . . . . 79 . . . Highest-Rated Ally 49 | . . 16 . . . . . . 49 . . . Total Orders . | . . . . . . . . . . . . . Ally Attacks 17 | . . 5 . . . . . . 12 . . . Total Damage 507 | . . 40 . . . . . . 467 . . . Kills 5 | . . 1 . . . . . . 4 . . . Allies Corrupted . | . . . . . . . . . . . . . Allies Melted . | . . . . . . . . . . . . . Intel | -11 -10 -10 -9 -8 -7 -6 -5 -4 -4 -4 -4 -3 ------- Run | Yrd Mat Min Mat Mat Fac Fac Fac Fac Upp Upp Zhi Pro Robot Analysis Total 4 | . . . . . . . . . . . 4 . Derelict Logs Recovered 1 | . . . . . . . . . 1 . . . Drone Launches . | . . . . . . . . . . . . . Drone Recoveries . | . . . . . . . . . . . . . Exploration | -11 -10 -10 -9 -8 -7 -6 -5 -4 -4 -4 -4 -3 ------------- Run | Yrd Mat Min Mat Mat Fac Fac Fac Fac Upp Upp Zhi Pro Turns Passed 6374 | 47 861 311 602 684 836 443 393 398 975 462 237 125 Spaces Moved 4065 | 47 604 294 298 327 428 263 213 205 697 397 189 103 Core 195 | 6 . . . 4 . . . . 6 64 115 . Treads 363 | . . . . 241 122 . . . . . . . Legs 2188 | . . . . . 306 263 213 205 691 333 74 103 Wheels 1319 | 41 604 294 298 82 . . . . . . . . Hover . | . . . . . . . . . . . . . Flight . | . . . . . . . . . . . . . Fastest Speed 50 | 50 90 95 95 90 130 130 127 127 100 50 50 120 Average Speed 117 | 76 95 95 100 155 138 130 129 131 122 109 105 120 Slowest Speed 800 | 80 105 125 115 800 200 130 130 200 127 200 120 120 Overloaded Moves . | . . . . . . . . . . . . . Propulsion Burnouts . | . . . . . . . . . . . . . Robots Hopped . | . . . . . . . . . . . . . Cave-ins Triggered . | . . . . . . . . . . . . . Teleports 1 | . . . . . . . . . . . . 1 Exploration Rate (%) 38 | 3 84 47 42 41 14 11 10 8 72 62 63 37 Regions Visited 12 Branch Regions 5 Pre-discovered Areas 4 | . . 1 . . . . . . . . 3 . Known Exits Taken 5 | . . . . 1 1 1 1 1 . . . . Unknown Exits Taken 7 | 1 1 1 1 . . . . . 1 1 1 . Scrap Searched 6 | . . 1 . . . . . . 3 2 . . Spaces Dug 26 | . . . . . . 17 7 . . . 2 . Terrain Destroyed 147 | . . 24 . 20 7 33 40 . 16 5 2 . Melee . | . . . . . . . . . . . . . Projectile 8 | . . . . . . . . . 1 5 2 . AOE 139 | . . 24 . 20 7 33 40 . 15 . . . Terrain Rammed . | . . . . . . . . . . . . . Walls Destroyed . | . . . . . . . . . . . . . Machines Disabled . | . . . . . . . . . . . . . Actions | -11 -10 -10 -9 -8 -7 -6 -5 -4 -4 -4 -4 -3 --------- Run | Yrd Mat Min Mat Mat Fac Fac Fac Fac Upp Upp Zhi Pro Total 5270 | 58 780 307 553 435 666 358 300 306 779 409 214 105 Wait 742 | . 71 . 210 21 212 91 57 69 10 . 1 . Move 4053 | 46 603 293 297 326 427 262 212 204 696 396 188 103 Hop . | . . . . . . . . . . . . . Pick Up 90 | 8 19 1 6 20 5 1 1 8 15 3 3 . Fast Attach 21 | . 1 1 1 1 6 . 1 1 2 . 7 . Attach 65 | 4 7 . 4 14 . 1 2 3 23 1 4 2 Detach 3 | . 2 . . . . . . . 1 . . . Swap 27 | . 5 1 7 6 1 . 6 . 1 . . . Drop 46 | . 6 1 4 10 9 . 4 4 5 1 2 . Fire 217 | . 66 10 24 37 1 3 16 17 26 8 9 . Melee . | . . . . . . . . . . . . . Ram . | . . . . . . . . . . . . . Kick 1 | . . . . . . . 1 . . . . . Crush 5 | . . . . . 5 . . . . . . . Escape Stasis . | . . . . . . . . . . . . . Rewire . | . . . . . . . . . . . . . Trap . | . . . . . . . . . . . . . Miscellaneous . | . . . . . . . . . . . . . Route ------- -11/Scrapyard -10/Materials (discovered 3 exits: *Mat x2 / [*Min]) -10/Mines -9/Materials -8/Materials -7/Factory -6/Factory -5/Factory -4/Factory (discovered 2 exits: [*Res] / *Upp) -4/Upper Caves -4/Upper Caves -4/Zhirov -3/Proximity Caves History --------- Turn | Location | Event 10 | -11/Scrapyard | Discovered new exit (range 15) 48 | -11/Scrapyard | Entered Materials 243 | -10/Materials | Discovered new exit (range 13) 303 | -10/Materials | Build established: Mutant 526 | -10/Materials | Discovered new exit (range 3) 548 | -10/Materials | Derelicts attacked the area 577 | -10/Materials | Core integrity fell below 50% 771 | -10/Materials | Discovered new exit (range 16) 909 | -10/Materials | Entered Mines 920 | -10/Mines | Assisted by bots powering up and referring to "LRC-V3" 934 | -10/Mines | Assembled infested the area 1007 | -10/Mines | YI-UF0 nonchalantly dropped a Grenade Launcher on the ground 1111 | -10/Mines | Learned location of Storage (-9) 1177 | -10/Mines | Discovered new exit (range 12) 1207 | -10/Mines | Lost 3 allies 1220 | -10/Mines | Entered Materials 1220 | -9/Materials | Evolved 2 slots: Utility x2 1807 | -9/Materials | Discovered new exit (range 14) 1822 | -9/Materials | Entered another Materials area 1822 | -8/Materials | Evolved 2 slots: Propulsion x2 1850 | -8/Materials | Garrison activated, responded to threat 1974 | -8/Materials | Lost 6 parts (3n2u1w) 2361 | -8/Materials | Build established: Scavenger-Mutant 2379 | -8/Materials | Met 7R-MNS 2495 | -8/Materials | Discovered new exit (range 8) 2504 | -8/Materials | Identified exit to Factory 2506 | -8/Materials | Entered Factory 2506 | -7/Factory | Evolved 2 slots: Utility x2 2507 | -7/Factory | Caught up to 7R-MNS 3322 | -7/Factory | Discovered new exit (range 15) 3341 | -7/Factory | Identified exit to Factory 3342 | -7/Factory | Entered another Factory area 3342 | -6/Factory | Evolved 2 slots: Utility x2 3343 | -6/Factory | Caught up to 7R-MNS 3623 | -6/Factory | Garrison activated, responded to threat 3777 | -6/Factory | Discovered new exit (range 6) 3784 | -6/Factory | Identified exit to Factory 3785 | -6/Factory | Entered another Factory area 3785 | -5/Factory | Evolved 2 slots: Utility x2 3786 | -5/Factory | Caught up to 7R-MNS 3967 | -5/Factory | Garrison activated, responded to threat 4151 | -5/Factory | Discovered new exit (range 8) 4168 | -5/Factory | Identified exit to Factory 4178 | -5/Factory | Entered another Factory area 4178 | -4/Factory | Evolved 2 slots: Power x1, Weapon x1 4179 | -4/Factory | Caught up to 7R-MNS 4303 | -4/Factory | Discovered new exit (range 20) 4442 | -4/Factory | Lost 3 parts (1n1u1w) 4442 | -4/Factory | Discovered new exit (range 12) 4574 | -4/Factory | Identified exit to Upper Caves 4574 | -4/Factory | 7R-MNS successfully reached the Upper Caves 4576 | -4/Factory | Entered Upper Caves 4689 | -4/Upper Caves | Learned Research stockpile data 4865 | -4/Upper Caves | Build established: Scavenger-Bomber 4868 | -4/Upper Caves | Attracted the attention of an 0b10 outpost 4950 | -4/Upper Caves | Lost 14 parts (3p2n5u4w) 5177 | -4/Upper Caves | Build established: Scavenger-Mutant 5319 | -4/Upper Caves | Discovered new exit (range 8) 5551 | -4/Upper Caves | Entered another Upper Caves area 5990 | -4/Upper Caves | Core integrity fell below 50% 6004 | -4/Upper Caves | Discovered new exit (range 10) 6009 | -4/Upper Caves | Lost 8 parts (1p4n2u1w) 6013 | -4/Upper Caves | Entered Zhirov 6013 | -4/Zhirov | Discovered new exit (range 4) 6056 | -4/Zhirov | Met Zhirov 6074 | -4/Zhirov | Learned location of Quarantine (-3) 6074 | -4/Zhirov | Learned location of Testing (-2) 6074 | -4/Zhirov | Learned location of Command (-1) 6097 | -4/Zhirov | Zhirov requested help retrieving the SGEMP Prototype 6116 | -4/Zhirov | Found Alien Artifact 6193 | -4/Zhirov | Found Alien Artifact 6248 | -4/Zhirov | Build established: Mutant 6250 | -4/Zhirov | Entered Proximity Caves 6250 | -3/Proximity Caves | Identified Integrated Reactor 6250 | -3/Proximity Caves | Installed Integrated Reactor, increased core energy generation (+10) 6251 | -3/Proximity Caves | Identified Transdimensional Reconstructor 6251 | -3/Proximity Caves | Warped through subspace 6366 | -3/Proximity Caves | Core integrity fell below 20% 6375 | -3/Proximity Caves | Destroyed by D-63 Destroyer with Heavy Rocket Launcher Last Messages --------------- 06347_ Slug penetrates Wall. 06347_ Penetrated by Slug. 06350_ Hvy. Battle Rifle destroyed. 06350_ Slug penetrates Wall. 06350_ Penetrated by Slug. 06350_ Slug penetrates H-77 Assassin. 06352_ Target Drone destroyed. 06357_ Slug penetrates Reinforced Barrier. 06360_ Dispatcher launches Target Drone into the air. 06360_ Slug penetrates Reinforced Barrier. 06362_ Penetrated by Slug. 06363_ Slug penetrates Reinforced Barrier. 06363_ Penetrated by Slug. 06367_ Lgt. Antimatter Reactor destroyed. 06368_ Target Drone destroyed. 06370_ Dispatcher launches Target Drone into the air. 06371_ Target Drone destroyed. 06375_ Adv. Myomer Leg destroyed. Map ----- +----------------------------------------------------+ | ?????????????????????????????????????????????????? | | ?????????????????????????????????????????????????? | | ?????????????????????????????????????????????????? | | ?????????????????????????????????????????????????? | | ?????????????????????????????????????????????????? | | ?????????????????????????????????????????????????? | | ??????????????????????????? ?????????????????????? | | ?????????????????????###### #???????????????????? | | ?????????????????? " ????????????????? | | ???????????????? di ??????????????? | | ????????????? ???????????? | | ????????????# ?????????? | | ????????????# ?????????? | | ????????????# ????????? | | ??????????### ????????? | | ??????????# ????????? | | ??????????# ???????? | | ??????????# ???????? | | ??????????# ??????? | | ??????????# ??????? | | ??????????# ??????? | | ??????????# i #?????? | | ??????????# #?????? | | ?????###### #?????? | | ?????# < #?????? | | ?##### @ i #?????? | | ## # d d #?????? | | #?????? | | #?????? | | #?????? | | ??????? | | ??????? | | # ??????? | | #### ???????? | | ##?# ???????? | | #?# ????????? | | #?# ????????? | | ##?# ????????? | | ##??# d ?????????? | | ##???# ?????????? | | #????# ??????????? | | ?????################## i ######???????????? | | ??????????????????????# #????????????????? | | ???????????????????????##########????????????????? | | ?????????????????????????????????????????????????? | | ?????????????????????????????????????????????????? | | ?????????????????????????????????????????????????? | | ?????????????????????????????????????????????????? | | #????????????????????????????????????????????????? | | ?????????????????????????????????????????????????? | +----------------------------------------------------+ Best States ------------- Heat Dissipation 62 Energy Generation 51 Energy Capacity 480 Matter Stores 300 Matter Capacity 300 Sight Range 20 Robot Scan Range 14 Terrain Scan Range 18 Terrain Scan Density 10 ECM Strength 2 Corruption Containment 12 Armor Coverage 750 Resistance: KI 30 Utility Shielding 90 Evasion (%) 55 Recoil Reduction 4 Offensive Hacking 14 Item Schematics ----------------- Assault Drone Bay | -4/Zhirov | Free Exp. Heat Sink | -4/Zhirov | Free Exp. Optical Array | -4/Zhirov | Free Imp. Arc Thrower | -4/Zhirov | Free Robot Schematics ------------------ None Fabricated ------------ Nothing Alien Tech Used ----------------- Integrated Reactor Transdimensional Reconstructor Achievements -------------- The Science Guy Challenges ------------ None Game ------ Seed MinesnifferFireSabre Manual? 0 Play Time 01:49:10 Cumulative 76.6 hours Start 2024.04.28 @ 12:24:14 End 2024.04.28 @ 14:17:58 Sessions 1 Manual Loads 0 Difficulty Rogue Special Mode None Game No. 63 Rogue 63 Adventurer 0 Explorer 0 Win Type - Total 0 Types 0/0/0/0/0/0/0/0/0 Lore% 45 Gallery% 45 Achievement% 35 Wizard Run 0 Options --------- Layout 2 ASCII 0 Keyboard 0 Movement Mouse Keybinds 0 Fullscreen 1 Font 48/Smallcaps Map View 50x44 Zoom Use 0% Tactical HUD 1 Map Filters NONE Filters NONE Steam 1 RUN: dc6a054c-be25-46f1-a757-33d190a672d2